bitfinex/quotes_ETHUSD_20230113
["timestamp","ask_amount","ask_price","bid_price","bid_amount"]
[1673652259665,3.43383009,1445.7,1445.6,21.79946588]
[1673652260278,0.092,1445.8,1445.6,21.79946588]
[1673652260492,0.092,1446.1,1445.6,25.05587282]
[1673652260701,0.092,1446.1,1445.7,1.03284588]
[1673652260702,3.43383009,1446.1,1445.7,1.03284588]
[1673652260959,0.092,1446.2,1445.8,28.69828588]
[1673652261148,0.092,1446.2,1445.8,28.71228588]
[1673652261149,3.43383009,1446.2,1445.8,28.71228588]
[1673652261363,3.43383009,1446.2,1445.8,30.25478996]
[1673652261697,0.092,1446.3,1446.0,27.66221]
[1673652261856,0.12846067,1446.5,1446.0,28.70905588]
[1673652262063,3.47029076,1446.5,1446.0,30.25155996]
[1673652262484,3.47029076,1446.5,1446.0,28.70905588]
[1673652262748,3.47029076,1446.5,1446.2,20.74371]
[1673652262922,0.03646067,1446.5,1446.2,20.75771]
[1673652263269,0.03646067,1446.5,1446.2,27.67238]
[1673652265647,0.3523928,1446.4,1446.2,27.67238]
[1673652266418,0.3523928,1446.4,1446.2,20.75771]
[1673652266625,1.5293928,1446.4,1446.2,0.014]
[1673652266858,4.96322289,1446.4,1446.1,13.82984]
[1673652267168,4.96322289,1446.4,1446.1,0.014]
[1673652267403,2.49632229,1446.3,1446.0,20.76018]
[1673652267620,3.43104048,1446.2,1446.0,0.014]
[1673652267773,3.43383009,1446.1,1445.8,0.052]
[1673652267982,3.43383009,1446.0,1445.6,1.03284588]
[1673652268209,3.43383009,1446.0,1445.5,39.04972774]
[1673652268438,3.43383009,1446.0,1445.6,13.83502]
[1673652268629,4.63830586,1446.0,1445.6,14.87186588]
[1673652268852,3.43383009,1446.0,1445.6,14.87186588]
[1673652269809,0.17522324,1445.9,1445.6,14.87186588]
[1673652270869,0.17522324,1445.9,1445.6,21.78940588]
[1673652271242,0.17522324,1445.9,1445.6,23.33190996]
[1673652271447,0.17522324,1445.9,1445.6,21.78940588]
[1673652271876,0.17522324,1445.9,1445.6,27.28349982]
[1673652272131,0.17522324,1445.9,1445.6,28.8260039]
[1673652272447,0.17522324,1445.9,1445.8,20.74974]
[1673652272605,0.17522324,1445.9,1445.8,20.75374]
[1673652272815,0.17522324,1445.9,1445.8,21.78658588]
[1673652273060,0.17522324,1445.9,1445.8,24.77137618]
[1673652273278,0.17522324,1445.9,1445.8,26.77137618]
[1673652273658,0.49632229,1446.3,1445.9,2.0]
[1673652273867,3.43383009,1446.2,1446.0,20.74686]
[1673652274072,3.43383009,1446.2,1446.0,20.75086]
[1673652274599,0.17672577,1446.1,1446.0,20.75086]
[1673652275431,0.17672577,1446.1,1446.0,22.832146]
[1673652275605,0.17341401,1446.4,1446.0,22.832146]
[1673652276218,0.17341401,1446.4,1446.1,2.0]
[1673652276434,0.17341401,1446.4,1446.2,20.74401]
[1673652276640,0.17341401,1446.4,1446.2,20.74801]
[1673652276868,0.17341401,1446.4,1446.2,23.720498]
[1673652277325,0.17341401,1446.4,1446.3,22.74257]
[1673652277484,0.17341401,1446.4,1446.3,20.74657]
[1673652280351,0.17341401,1446.4,1446.3,23.74657]
[1673652280774,0.17341401,1446.4,1446.3,25.74657]
[1673652281113,0.17341401,1446.4,1446.3,29.17168024]
[1673652281302,0.17341401,1446.4,1446.3,27.17168024]
[1673652281685,0.3523928,1446.4,1446.3,27.17168024]
[1673652281895,0.3523928,1446.4,1446.3,29.17168024]
[1673652282575,0.3523928,1446.4,1446.3,32.60551033]
[1673652285618,2.8e-06,1446.4,1446.3,39.51970033]
[1673652285834,0.3,1446.6,1446.4,2.0]
[1673652286186,0.02863272,1446.7,1446.4,2.0]
[1673652286187,0.02863272,1446.7,1446.6,29.65104]
[1673652286471,0.03815964,1446.9,1446.6,33.08887009]
[1673652286658,0.03815964,1446.9,1446.7,3.0]
[1673652286873,0.03815964,1446.9,1446.7,23.73639]
[1673652287200,0.03815964,1446.9,1446.8,15.704886]
[1673652287410,0.03815964,1446.9,1446.8,25.620686]
[1673652289353,0.03815964,1446.9,1446.8,24.59200543]
[1673652289568,0.19106158,1446.9,1446.8,24.59200543]
[1673652291403,0.14106158,1446.9,1446.8,24.59200543]
[1673652293811,0.14106158,1446.9,1446.8,6.9158]
[1673652294011,1.31806158,1446.9,1446.8,0.004]
[1673652294235,15.14070158,1446.9,1446.8,0.002]
[1673652294413,1.181,1446.7,1446.5,13.9205]
[1673652294645,1.181,1446.7,1446.5,0.004]
[1673652294881,1.181,1446.7,1446.5,6.91307]
[1673652295198,0.004,1446.7,1446.5,14.521607]
[1673652295550,0.14906373,1446.6,1446.5,14.521607]
[1673652296132,0.14906373,1446.6,1446.5,22.95543709]
[1673652296753,0.004,1446.7,1446.5,20.95543709]
[1673652296940,0.004,1446.7,1446.6,3.0]
[1673652297254,0.004,1446.7,1446.6,13.3004007]
[1673652297510,0.004,1446.7,1446.6,20.2171607]
[1673652297663,0.15381432,1446.7,1446.6,20.2171607]
[1673652298741,0.15381432,1446.7,1446.6,9.91676]
[1673652299147,1.33081432,1446.7,1446.6,3.004]
[1673652299360,0.15381432,1446.7,1446.6,3.0]
[1673652299759,1.33081432,1446.7,1446.6,3.0]
[1673652299986,1.33081432,1446.7,1446.5,3.066]
[1673652299987,1.46389575,1446.7,1446.5,3.066]
[1673652300338,0.29995158,1446.7,1446.6,3.0]
[1673652300495,0.16687015,1446.7,1446.6,3.0]
[1673652300943,0.15381432,1446.7,1446.6,3.0]
[1673652301386,0.15381432,1446.7,1446.6,9.91276]
[1673652301602,0.15381432,1446.7,1446.6,16.82952]
[1673652301795,0.15381432,1446.7,1446.6,19.209992]
[1673652302224,0.15381432,1446.7,1446.6,26.122752]
[1673652302684,0.03108458,1447.0,1446.6,26.122752]
[1673652302912,0.03108458,1447.0,1446.7,5.43383009]
[1673652303122,0.03108458,1447.0,1446.8,23.7354]
[1673652303267,0.03108458,1447.0,1446.9,2.37354]
[1673652303490,0.03108458,1447.0,1446.9,13.82264]
[1673652303829,0.03108458,1447.0,1446.9,16.82664]
[1673652305119,0.03108458,1447.0,1446.9,23.73796]
[1673652305716,0.09992045,1447.0,1446.9,27.77123643]
[1673652305924,0.04533646,1447.4,1447.0,2.0]
[1673652306188,0.04533646,1447.4,1447.0,8.43383009]
[1673652306361,0.04533646,1447.4,1447.1,31.07491009]
[1673652306578,0.04533646,1447.4,1447.2,3.43383009]
[1673652306779,0.11141344,1447.3,1447.2,6.43383009]
[1673652307017,0.11141344,1447.3,1447.2,31.07710009]
[1673652307349,9.9e-06,1447.4,1447.3,2.0]
[1673652307501,9.9e-06,1447.4,1447.3,16.81882]
[1673652307708,9.9e-06,1447.4,1447.3,16.82282]
[1673652307960,9.9e-06,1447.4,1447.3,18.21805303]
[1673652308123,9.9e-06,1447.4,1447.3,25.12746303]
[1673652308660,0.03630607,1447.4,1447.3,25.12746303]
[1673652308899,6.07e-06,1447.4,1447.3,25.12746303]
[1673652309101,6.07e-06,1447.4,1447.3,28.56129312]
[1673652309726,0.07860895,1447.6,1447.3,28.56129312]
[1673652309953,0.07860895,1447.6,1447.4,5.81430209]
[1673652310276,0.07860895,1447.6,1447.5,3.0]
[1673652310602,0.07860895,1447.6,1447.4,5.81830209]
[1673652310603,0.07860895,1447.6,1447.4,0.066]
[1673652310805,0.07860895,1447.6,1447.3,6.90911]
[1673652311020,0.07860895,1447.6,1447.3,6.91311]
[1673652311341,0.98053842,1447.6,1447.3,6.91111]
[1673652311517,0.98053842,1447.6,1447.3,6.91311]
[1673652311749,0.07860895,1447.6,1447.3,6.91311]
[1673652312061,0.07860895,1447.6,1447.3,20.73193]
[1673652312274,0.07860895,1447.6,1447.4,3.0]
[1673652312477,0.07860895,1447.6,1447.4,16.8177]
[1673652312692,0.07860895,1447.6,1447.4,9.91276]
[1673652312844,0.07860895,1447.6,1447.4,9.91285]
[1673652313808,2.07860895,1447.6,1447.4,3.004]
[1673652314012,0.07860895,1447.6,1447.4,16.81783]
[1673652314229,0.07860895,1447.6,1447.4,26.110077]
[1673652314975,0.07860895,1447.6,1447.4,19.201137]
[1673652315609,0.07860895,1447.6,1447.4,29.54390709]
[1673652316738,0.07860895,1447.6,1447.5,2.0]
[1673652316953,0.07860895,1447.6,1447.5,22.72538]
[1673652317163,8.95e-06,1447.6,1447.5,29.58072071]
[1673652317495,8.95e-06,1447.6,1447.5,33.0145508]
[1673652317694,0.05984873,1447.7,1447.5,33.0145508]
[1673652317887,0.05984873,1447.7,1447.6,6.43383009]
[1673652318146,0.05984873,1447.7,1447.6,6.43783009]
[1673652318460,0.05984873,1447.7,1447.6,28.88773317]
[1673652318652,0.05984873,1447.7,1447.6,18.54592308]
[1673652318857,0.05984873,1447.7,1447.6,25.45390308]
[1673652320879,0.05984873,1447.7,1447.6,28.88773317]
[1673652325432,0.05984873,1447.7,1447.6,18.54592308]
[1673652325642,0.05984873,1447.7,1447.6,25.45390308]
[1673652325897,0.05984873,1447.7,1447.6,28.88773317]
[1673652326062,0.05984873,1447.7,1447.6,28.88982476]
[1673652326482,0.05984873,1447.7,1447.6,30.88982476]
[1673652326945,0.05984873,1447.7,1447.6,28.88982476]
[1673652327744,0.05984873,1447.7,1447.6,3.00609159]
[1673652327956,0.07290456,1447.7,1447.5,6.97404]
[1673652328273,0.07290456,1447.7,1447.6,3.0]
[1673652328743,0.11121302,1447.7,1447.6,16.81596]
[1673652329057,0.11121302,1447.7,1447.6,9.91198]
[1673652329422,0.11121302,1447.7,1447.6,15.7918491]
[1673652329635,0.11121302,1447.7,1447.6,22.6998291]
[1673652329893,0.11121302,1447.7,1447.6,18.75883601]
[1673652330490,0.11121302,1447.7,1447.6,29.1006461]
[1673652330687,0.11121302,1447.7,1447.6,30.6006461]
[1673652331755,0.11121302,1447.7,1447.6,29.1006461]
[1673652332193,0.11121302,1447.7,1447.6,4.94287601]
[1673652332525,0.11121302,1447.7,1447.6,15.7878491]
[1673652332682,1.28821302,1447.7,1447.6,1.9758891]
[1673652332889,1.30126885,1447.7,1447.4,16.36630352]
[1673652333105,0.12426885,1447.7,1447.4,16.30430352]
[1673652333776,0.12426885,1447.7,1447.4,13.82142]
[1673652334155,0.12426885,1447.7,1447.5,3.0]
[1673652334370,0.12426885,1447.7,1447.5,9.90844]
[1673652334594,0.11121302,1447.7,1447.5,9.91244]
[1673652335297,0.11121302,1447.7,1447.5,16.8209]
[1673652335824,0.21646649,1447.6,1447.5,16.8209]
[1673652336628,0.0787119,1447.6,1447.5,26.108521]
[1673652337376,0.0787119,1447.6,1447.5,28.108521]
[1673652337590,0.03313572,1447.7,1447.5,31.54235109]
[1673652338130,0.03313572,1447.7,1447.6,2.0]
[1673652338344,0.03313572,1447.7,1447.6,20.72394]
[1673652338509,0.03313572,1447.7,1447.6,27.37907711]
[1673652339088,0.03313572,1447.7,1447.6,9.91198]
[1673652339243,0.03313572,1447.7,1447.6,16.81996]
[1673652339711,0.11259717,1447.7,1447.6,16.81996]
[1673652339931,0.11259717,1447.7,1447.6,9.91198]
[1673652340868,0.11259717,1447.7,1447.6,23.72794]
[1673652341028,0.11259717,1447.7,1447.6,26.106934]
[1673652341445,0.11259717,1447.7,1447.6,28.106934]
[1673652341660,0.11259717,1447.7,1447.6,26.106934]
[1673652342087,0.11259717,1447.7,1447.6,29.54076409]
[1673652342499,0.11259717,1447.7,1447.6,31.04076409]
[1673652342924,0.11259717,1447.7,1447.6,29.54076409]
[1673652343567,0.11259717,1447.7,1447.6,32.57360997]
[1673652343810,0.11259717,1447.7,1447.6,31.54076409]
[1673652344127,0.11259717,1447.7,1447.6,32.57360997]
[1673652345041,0.11259717,1447.7,1447.6,35.1398698]
[1673652345772,7.17e-06,1447.7,1447.6,35.1398698]
[1673652346001,4.71e-06,1447.9,1447.7,2.0]
[1673652346194,0.03518643,1448.1,1447.9,27.6262]
[1673652346406,0.03518643,1448.1,1448.0,23.71821]
[1673652346612,0.03518643,1448.1,1448.0,3.004]
[1673652346827,0.03518643,1448.1,1448.0,3.0]
[1673652347275,0.03518643,1448.1,1447.9,3.066]
[1673652347460,0.03518643,1448.1,1448.0,0.3066]
[1673652348281,0.03518643,1448.1,1448.0,7.21267]
[1673652348485,0.03518643,1448.1,1448.0,10.21667]
[1673652349547,0.03518643,1448.1,1448.0,20.55657009]
[1673652349964,0.03518643,1448.1,1448.0,21.58939835]
[1673652350861,0.03518643,1448.1,1448.0,28.49546835]
[1673652351692,0.03518643,1448.1,1448.0,27.46264009]
[1673652352390,0.03518643,1448.1,1448.0,30.49546835]
[1673652352601,0.69383689,1448.4,1448.1,2.0]
[1673652352806,0.06017689,1448.5,1448.1,2.0]
[1673652352807,0.06017689,1448.5,1448.2,31.25431009]
[1673652353033,0.06017689,1448.5,1448.4,20.71251]
[1673652353229,0.06017689,1448.5,1448.4,34.05451009]
[1673652354276,0.06017689,1448.5,1448.4,23.71651]
[1673652354688,0.06017689,1448.5,1448.4,30.21861209]
[1673652355237,0.06017689,1448.5,1448.4,26.784782]
[1673652356318,0.06017689,1448.5,1448.4,3.004]
[1673652356526,0.06017689,1448.5,1448.4,1.17314836]
[1673652356738,0.06017689,1448.5,1448.3,6.97021]
[1673652356908,0.06017689,1448.5,1448.3,0.004]
[1673652357120,0.06017689,1448.5,1448.3,17.24275009]
[1673652357347,0.06017689,1448.5,1448.4,1.72427501]
[1673652357565,0.06017689,1448.5,1448.4,15.53261501]
[1673652357887,0.06017689,1448.5,1448.4,25.8746151]
[1673652358295,0.06017689,1448.5,1448.4,28.8746151]
[1673652358930,0.06017689,1448.5,1448.4,23.71651]
[1673652359102,0.06017689,1448.5,1448.4,9.90817]
[1673652359315,0.06017689,1448.5,1448.4,23.71651]
[1673652359943,0.06017689,1448.5,1448.4,27.15034009]
[1673652360941,0.06017689,1448.5,1448.4,9.90817]
[1673652361257,0.06017689,1448.5,1448.4,16.81234]
[1673652361483,0.06017689,1448.5,1448.4,20.008473]
[1673652362025,0.06017689,1448.5,1448.4,23.44230309]
[1673652362354,0.06017689,1448.5,1448.4,16.53813309]
[1673652362580,0.06017689,1448.5,1448.4,23.44230309]
[1673652363006,0.06017689,1448.5,1448.4,30.34647309]
[1673652363454,0.06017689,1448.5,1448.4,16.53813309]
[1673652363663,0.06017689,1448.5,1448.4,23.44230309]
[1673652363855,0.06017689,1448.5,1448.4,3.004]
[1673652364069,0.06017689,1448.5,1448.4,20.71251]
[1673652364292,0.06017689,1448.5,1448.4,23.71651]
[1673652366472,0.06017689,1448.5,1448.4,27.15034009]
[1673652366685,0.06017689,1448.5,1448.4,27.12818201]
[1673652367403,0.06017689,1448.5,1448.4,6.41567201]
[1673652367613,0.06017689,1448.5,1448.4,9.90817]
[1673652368276,0.06017689,1448.5,1448.4,23.71651]
[1673652373479,5.03124089,1448.9,1448.4,23.71651]
[1673652373634,8.46507098,1448.9,1448.5,3.0]
[1673652373843,10.40030908,1448.9,1448.6,13.8063]
[1673652374058,10.40030908,1448.9,1448.6,13.8103]
[1673652374402,2.99347899,1448.9,1448.6,20.71351]
[1673652374585,0.96624089,1448.9,1448.8,13.80452]
[1673652374805,0.96624089,1448.9,1448.8,6.90626]
[1673652375472,0.96624089,1448.9,1448.8,0.004]
[1673652375776,0.96624089,1448.9,1448.8,0.297]
[1673652375988,0.96624089,1448.9,1448.8,7.19926]
[1673652376179,0.96624089,1448.9,1448.8,7.20326]
[1673652376395,0.96624089,1448.9,1448.8,21.58845648]
[1673652376569,0.96624089,1448.9,1448.8,24.58845648]
[1673652379107,0.96624089,1448.9,1448.8,26.58845648]
[1673652379568,0.07525926,1449.3,1448.8,39.05220691]
[1673652379724,0.07525926,1449.3,1449.0,1.512]
[1673652379930,0.07525926,1449.3,1449.1,27.75452]
[1673652380189,0.07525926,1449.3,1449.2,3.0]
[1673652380513,0.07525926,1449.3,1449.2,23.70105]
[1673652380725,0.04260852,1449.5,1449.2,28.64488009]
[1673652380882,0.04260852,1449.5,1449.4,20.6982]
[1673652381104,0.04260852,1449.5,1449.4,3.004]
[1673652381309,9.3013431,1449.7,1449.3,3.066]
[1673652381632,9.3013431,1449.7,1449.1,7.05193]
[1673652381633,0.93013431,1449.6,1449.4,3.0]
[1673652381854,9.3013431,1449.7,1449.3,0.066]
[1673652381855,6.9643431,1449.7,1449.3,0.066]
[1673652382196,0.092,1449.7,1449.4,6.89907]
[1673652382409,2.092,1449.8,1449.5,9.89864]
[1673652382633,2.0,1449.8,1449.5,16.80157]
[1673652382790,2.13331144,1449.9,1449.5,16.80157]
[1673652383005,4.43195197,1449.9,1449.5,3.004]
[1673652383335,12.34684581,1449.9,1449.4,3.066]
[1673652383515,19.33604581,1449.9,1449.4,3.0]
[1673652383722,19.33604581,1449.9,1449.3,3.066]
[1673652383723,20.85704581,1449.9,1449.3,3.066]
[1673652383931,20.85704581,1449.9,1449.3,3.0]
[1673652384265,1.513,1449.4,1449.2,0.066]
[1673652384614,0.092,1449.5,1449.0,6.90492]
[1673652384837,2.335,1449.6,1449.2,13.80059]
[1673652385148,2.335,1449.6,1449.2,0.004]
[1673652385149,3.521,1449.5,1449.2,0.004]
[1673652385311,10.42026,1449.5,1448.9,13.80682]
[1673652385524,20.41937801,1449.5,1449.0,1.380682]
[1673652385726,20.41937801,1449.5,1448.9,6.96741]
[1673652385963,20.41937801,1449.5,1449.0,3.0]
[1673652386136,3.43383009,1449.4,1449.0,3.0]
[1673652386352,1.521,1449.3,1448.9,0.066]
[1673652386555,3.43383009,1449.2,1448.8,0.004]
[1673652386813,6.90039,1449.2,1448.7,6.90641]
[1673652387039,6.90039,1449.2,1448.7,17.53620324]
[1673652387040,2.092,1449.2,1448.7,17.53620324]
[1673652387202,2.0,1449.2,1448.7,20.97003333]
[1673652387638,3.508,1449.2,1448.7,17.53620324]
[1673652387847,3.508,1449.2,1448.7,13.81165724]
[1673652389618,3.508,1449.2,1448.8,3.0]
[1673652389825,2.43538301,1449.3,1448.8,16.80401]
[1673652389826,3.95638301,1449.3,1448.8,16.80401]
[1673652390036,3.86438301,1449.3,1448.8,19.185252]
[1673652391332,1.86438301,1449.3,1448.8,19.185252]
[1673652391494,1.613,1449.4,1448.8,22.61908209]
[1673652391703,14.65165801,1449.5,1448.8,22.61908209]
[1673652391965,9.3158,1449.5,1448.9,2.26190821]
[1673652392282,9.3158,1449.5,1449.0,20.70279]
[1673652392598,9.3158,1449.5,1449.0,20.70679]
[1673652392756,1.606,1449.5,1449.0,24.14062009]
[1673652392968,1.514,1449.5,1449.0,24.14062009]
[1673652393178,1.514,1449.5,1449.1,2.41406201]
[1673652393492,26.3349,1449.7,1449.2,20.70881735]
[1673652393704,0.002,1449.6,1449.2,20.72281735]
[1673652393912,0.002,1449.6,1449.2,13.82251735]
[1673652394119,0.002,1449.6,1449.2,20.72286735]
[1673652394379,0.002,1449.6,1449.2,23.4971008]
[1673652394539,2.0,1449.7,1449.2,23.4971008]
[1673652394972,8.89804,1449.7,1449.2,16.5967508]
[1673652395182,8.99004,1449.7,1449.2,23.4971008]
[1673652395475,2.092,1449.7,1449.2,23.4971008]
[1673652395746,12.12923097,1449.7,1449.2,23.4971008]
[1673652395965,12.22123097,1449.7,1449.2,23.4971008]
[1673652396110,15.65506106,1449.7,1449.2,13.82251735]
[1673652396324,1.519,1449.4,1449.2,0.014]
[1673652396578,1.519,1449.4,1449.2,13.80059]
[1673652396790,1.519,1449.4,1449.2,20.70494]
[1673652397174,1.613,1449.5,1449.2,20.70494]
[1673652397502,1.84948151,1449.6,1449.2,23.59048351]
[1673652397905,1.84948151,1449.6,1449.2,23.6085113]
[1673652398125,1.84948151,1449.6,1449.2,16.7081613]
[1673652398333,5.2833116,1449.6,1449.2,13.80459]
[1673652398559,5.2833116,1449.6,1449.2,0.004]
[1673652398560,3.512,1449.4,1449.2,0.004]
[1673652398752,3.512,1449.4,1449.1,13.80522]
[1673652398963,4.90567601,1449.4,1449.1,20.70583]
[1673652399840,4.90567601,1449.4,1449.1,6.90461]
[1673652400365,2.90567601,1449.4,1449.1,20.70627]
[1673652400555,1.512,1449.4,1449.1,20.70627]
[1673652400774,0.092,1449.5,1449.1,20.70627]
[1673652400954,1.85148151,1449.6,1449.1,20.70627]
[1673652401156,2.91382314,1449.6,1449.1,23.773207]
[1673652402476,2.91382314,1449.6,1449.1,20.70627]
[1673652402785,2.91382314,1449.6,1449.1,13.80544]
[1673652402786,3.521,1449.5,1449.1,13.80544]
[1673652403033,6.95483009,1449.5,1449.1,13.80544]
[1673652403238,1.519,1449.2,1449.1,0.004]
[1673652403451,1.519,1449.2,1448.9,6.90157]
[1673652403622,1.513,1449.3,1448.9,13.80708]
[1673652403815,4.94683009,1449.3,1448.9,13.80708]
[1673652404033,6.94683009,1449.3,1448.9,13.80708]
[1673652404252,2.21368301,1449.2,1448.9,20.70886]
[1673652406075,1.519,1449.2,1448.9,20.70886]
[1673652408650,1.369,1449.2,1448.9,20.70886]
[1673652409707,1.369,1449.2,1448.9,20.70686]
[1673652410021,1.369,1449.2,1448.9,20.70886]
[1673652414536,9.94331,1449.0,1448.9,0.004]
[1673652414749,7.04683009,1449.0,1448.7,0.066]
[1673652414961,7.04683009,1449.0,1448.6,6.90702]
[1673652414962,3.43383009,1448.9,1448.6,6.90702]
[1673652415181,0.34338301,1448.8,1448.6,0.004]
[1673652415409,0.34338301,1448.8,1448.5,13.81102]
[1673652415584,1.85538301,1448.8,1448.5,7.94018826]
[1673652415803,1.85538301,1448.8,1448.5,0.004]
[1673652415804,1.6975383,1448.7,1448.5,0.004]
[1673652416056,1.521,1448.6,1448.4,1.03282826]
[1673652416217,1.521,1448.6,1448.3,16.11407065]
[1673652416427,3.42484084,1448.6,1448.3,2.58607065]
[1673652416699,10.32832084,1448.6,1448.3,2.58207065]
[1673652416893,3.51684084,1448.6,1448.3,2.58207065]
[1673652417069,1.521,1448.6,1448.4,1.03282826]
[1673652417273,1.521,1448.6,1448.3,15.35851239]
[1673652417274,1.521,1448.6,1448.3,16.45734065]
[1673652417627,1.521,1448.6,1448.4,14.84104826]
[1673652417949,5.23236839,1448.7,1448.4,13.81222]
[1673652418106,1.7985383,1448.7,1448.4,20.71639]
[1673652418316,1.85138301,1448.8,1448.4,20.71639]
[1673652418738,1.85138301,1448.8,1448.5,0.02377035]
[1673652418998,0.34338301,1448.8,1448.5,4.05659861]
[1673652419190,0.34338301,1448.8,1448.6,20.70963]
[1673652419517,0.092,1448.9,1448.6,20.71363]
[1673652419730,3.43383009,1448.9,1448.6,20.71363]
[1673652420762,3.43583009,1448.9,1448.6,20.71163]
[1673652421097,3.43583009,1448.9,1448.6,13.81042]
[1673652421098,3.43383009,1448.9,1448.6,13.81042]
[1673652421261,4.8286441,1448.9,1448.6,13.81042]
[1673652421714,4.8286441,1448.9,1448.6,6.90721]
[1673652422524,4.8286441,1448.9,1448.6,13.81042]
[1673652422989,4.8286441,1448.9,1448.6,20.71363]
[1673652423513,4.8286441,1448.9,1448.6,6.90721]
[1673652423731,0.48286441,1448.8,1448.6,6.90721]
[1673652424038,0.48286441,1448.8,1448.6,13.81042]
[1673652424796,0.48286441,1448.8,1448.6,20.71363]
[1673652424996,2.00186441,1448.8,1448.6,13.81042]
[1673652425301,0.20018644,1448.7,1448.6,20.71363]
[1673652425463,2.00186441,1448.8,1448.6,23.71363]
[1673652425678,2.00186441,1448.8,1448.6,13.81042]
[1673652426140,2.00186441,1448.8,1448.6,20.71363]
[1673652426519,2.00186441,1448.8,1448.6,13.81042]
[1673652426728,1.85186441,1448.8,1448.6,20.71363]
[1673652426943,1.519,1448.8,1448.6,20.71363]
[1673652427266,1.519,1448.8,1448.6,13.81042]
[1673652427614,1.519,1448.8,1448.6,0.004]
[1673652427615,1.512,1448.7,1448.6,0.004]
[1673652427830,15.31748,1448.7,1448.2,16.83747065]
[1673652428037,0.1512,1448.6,1448.2,23.68021065]
[1673652428191,15.40983,1448.7,1448.2,37.49020065]
[1673652428610,17.40983,1448.7,1448.2,37.49020065]
[1673652428872,10.50674,1448.7,1448.2,35.94095826]
[1673652429036,10.50674,1448.7,1448.3,3.0]
[1673652429248,1.514,1448.6,1448.3,3.0]
[1673652429574,3.512,1448.4,1448.2,0.066]
[1673652429766,1.521,1448.3,1448.1,7.03350784]
[1673652429978,1.512,1448.2,1448.1,0.12823784]
[1673652430236,1.512,1448.2,1448.1,0.12423784]
[1673652430403,1.6632,1448.2,1448.1,0.12423784]
[1673652431080,1.512,1448.2,1448.1,0.12423784]
[1673652431402,4.204,1448.4,1448.1,0.12423784]
[1673652431403,0.092,1448.4,1448.1,20.84103784]
[1673652431554,11.8998,1448.6,1448.1,20.84503784]
[1673652431555,11.9918,1448.6,1448.1,20.84503784]
[1673652431764,15.42563009,1448.6,1448.1,20.84503784]
[1673652431975,13.84352009,1448.5,1448.1,0.12823784]
[1673652432236,13.84352009,1448.5,1448.1,0.12423784]
[1673652432237,1.513,1448.3,1448.1,0.12423784]
[1673652432408,6.94683009,1448.3,1448.1,0.12423784]
[1673652432618,7.03883009,1448.3,1448.1,0.12423784]
[1673652432833,3.43383009,1448.2,1448.1,0.12423784]
[1673652434828,1.605,1448.3,1448.1,20.84103784]
[1673652435065,1.613,1448.4,1448.1,23.63484674]
[1673652435239,1.521,1448.5,1448.1,23.63484674]
[1673652435446,1.521,1448.5,1448.1,23.65831052]
[1673652435864,3.43383009,1448.4,1448.1,2.94151052]
[1673652436071,3.43383009,1448.4,1448.1,0.12423784]
[1673652436287,3.43383009,1448.3,1448.1,0.12423784]
[1673652436537,4.42383009,1448.3,1448.1,0.12423784]
[1673652437069,4.42383009,1448.3,1448.1,7.02978784]
[1673652437245,4.42383009,1448.3,1448.1,13.93938784]
[1673652437677,1.14,1448.3,1448.1,7.03378784]
[1673652437888,1.14,1448.3,1448.1,0.12823784]
[1673652438108,4.80133009,1448.3,1448.1,0.12423784]
[1673652438346,3.43383009,1448.2,1448.1,0.12423784]
[1673652438928,3.43383009,1448.2,1447.9,10.09997575]
[1673652438929,3.43383009,1448.2,1447.9,9.56597332]
[1673652439140,4.57583009,1448.2,1447.9,6.91013]
[1673652439484,0.45758301,1448.1,1447.9,6.91013]
[1673652439698,0.45758301,1448.1,1447.9,0.004]
[1673652439699,3.8914131,1448.1,1447.9,0.004]
[1673652439871,3.8914131,1448.1,1447.8,7.0331909]
[1673652440088,3.8914131,1448.1,1447.8,13.9402209]
[1673652440487,3.8914131,1448.1,1447.8,20.8472509]
[1673652440734,3.8914131,1448.1,1447.8,0.1264909]
[1673652440735,17.6351114,1448.0,1447.8,0.1264909]
[1673652440948,24.6331814,1448.0,1447.8,0.1224909]
[1673652441229,3.43383009,1447.9,1447.8,0.1224909]
[1673652442682,0.092,1448.0,1447.8,0.1224909]
[1673652442890,9.2105,1448.3,1447.8,21.54697899]
[1673652443097,12.64433009,1448.3,1447.8,20.8475809]
[1673652443469,3.43383009,1448.2,1447.8,20.8475809]
[1673652443678,3.43383009,1448.1,1447.8,20.8475809]
[1673652443921,3.7772131,1448.1,1447.8,20.8475809]
[1673652445747,10.6848231,1448.1,1447.8,0.1244909]
[1673652446037,3.43383009,1448.0,1447.8,0.1224909]
[1673652446260,10.34020009,1448.0,1447.8,0.1224909]
[1673652446443,1.03402001,1447.9,1447.8,0.1224909]
[1673652446828,4.4678501,1447.9,1447.8,0.1224909]
[1673652448086,20.5559501,1447.9,1447.8,0.1224909]
[1673652448349,2.0,1447.8,1447.6,0.137558]
[1673652448539,3.43383009,1447.7,1447.6,0.137558]
[1673652448751,3.28383009,1447.7,1447.6,0.137558]
[1673652449082,10.19133009,1447.7,1447.6,0.137558]
[1673652449301,3.37583009,1447.7,1447.6,0.137558]
[1673652449524,5.4084126,1447.7,1447.6,0.137558]
[1673652449725,5.5004126,1447.7,1447.6,0.137558]
[1673652450834,12.4079126,1447.7,1447.6,0.137558]
[1673652451467,2.21658251,1447.7,1447.6,0.137558]
[1673652451706,0.092,1447.8,1447.6,7.045538]
[1673652451881,21.51387,1448.0,1447.6,13.957518]
[1673652451882,0.092,1448.0,1447.6,13.957518]
[1673652452093,30.462,1448.2,1447.6,13.957518]
[1673652452301,37.36728,1448.2,1447.7,1.3957518]
[1673652452552,1.234,1448.2,1447.7,15.2104418]
[1673652452778,4.57583009,1448.2,1447.7,15.2144418]
[1673652452938,29.0219,1448.3,1447.8,1.52144418]
[1673652453132,11.81663009,1448.3,1447.9,20.71893]
[1673652453342,0.092,1448.3,1448.0,2.0]
[1673652453559,31.51,1448.5,1448.0,2.0]
[1673652453560,0.38885704,1448.2,1448.1,6.9056]
[1673652453815,0.38885704,1448.2,1448.1,0.004]
[1673652453984,0.38885704,1448.2,1448.0,6.90988]
[1673652454407,0.38885704,1448.2,1448.0,0.004]